fUSD/lending_fUSD_20250225
["ID","MTS","AMOUNT","RATE_DAILY","PERIOD"]
[354382107,1740468680602,-500.0,0.00054794,120]
[354382108,1740468680611,-500.0,0.00054794,120]
[354382109,1740468680620,-500.0,0.00054794,120]
[354382110,1740468680629,-500.0,0.00054794,120]
[354382111,1740468680639,-500.0,0.00054794,120]
[354382112,1740468680648,-500.0,0.00054794,120]
[354382113,1740468680657,-500.0,0.00054794,120]
[354382114,1740468680667,-500.0,0.00054794,120]
[354382115,1740468680676,-500.0,0.00054794,120]
[354382116,1740468680685,-500.0,0.00054794,120]
[354382117,1740468680695,-500.0,0.00054794,120]
[354382118,1740468680705,-500.0,0.00054794,120]
[354382119,1740468680714,-500.0,0.00054794,120]
[354382120,1740468680723,-500.0,0.00054794,120]
[354382121,1740468680732,-502.00403432,0.00054794,120]
[354382122,1740468680741,-500.0,0.00054794,120]
[354382123,1740468680750,-599.74,0.00054794,120]
[354382124,1740468680759,-500.0,0.00054794,120]
[354382125,1740468680769,-500.94574177,0.00054794,120]
[354382126,1740468680781,-500.0,0.00054794,120]
[354382127,1740468680790,-500.0,0.00054794,120]
[354382128,1740468680800,-500.0,0.00054794,120]
[354382129,1740468680810,-515.75,0.00054794,120]
[354382130,1740468680819,-187.6034793,0.00054794,120]
[354382131,1740468680829,-500.0,0.00054794,120]
[354382132,1740468680839,-500.0,0.00054794,120]
[354382133,1740468680848,-1301.53,0.00054794,120]
[354382134,1740468680858,-500.0,0.00054794,120]
[354382135,1740468680867,-503.55037054,0.00054794,120]
[354382136,1740468680877,-500.0,0.00054794,120]
[354382137,1740468680887,-500.0,0.00054794,120]
[354382138,1740468680896,-500.0,0.00054794,120]
[354382139,1740468680906,-500.25982969,0.00054794,120]
[354382140,1740468680916,-500.0,0.00054794,120]
[354382141,1740468680925,-500.0,0.00054794,120]
[354382142,1740468680935,-500.0,0.00054794,120]
[354382143,1740468680944,-1377.93,0.00054794,120]
[354382144,1740468680954,-506.00434972,0.00054794,120]
[354382145,1740468680964,-500.0,0.00054794,120]
[354382146,1740468680973,-500.0,0.00054794,120]
[354382147,1740468680982,-519.39,0.00054794,120]
[354382148,1740468680992,-623.61,0.00054794,120]
[354382149,1740468681001,-500.0,0.00054794,120]
[354382150,1740468681011,-500.0,0.00054794,120]
[354382151,1740468681020,-1303.38,0.00054794,120]
[354382152,1740468681034,-500.0,0.00054794,120]
[354382153,1740468681044,-506.23772292,0.00054794,120]
[354382154,1740468681053,-500.0,0.00054794,120]
[354382155,1740468681063,-500.0,0.00054794,120]
[354382156,1740468681072,-500.0,0.00054794,120]
[354382157,1740468681081,-500.0,0.00054794,120]
[354382158,1740468681094,-500.0,0.00054794,120]
[354382159,1740468681103,-500.61899318,0.00054794,120]
[354382160,1740468681113,-500.0,0.00054794,120]
[354382161,1740468681122,-500.0,0.00054794,120]
[354382162,1740468681132,-500.0,0.00054794,120]
[354382163,1740468681141,-500.0,0.00054794,120]
[354382164,1740468681150,-500.0,0.00054794,120]
[354382165,1740468681160,-500.0,0.00054794,120]
[354382166,1740468681171,-500.0,0.00054794,120]
[354382167,1740468681181,-500.0,0.00054794,120]
[354382168,1740468681190,-500.0,0.00054794,120]
[354382169,1740468681200,-585.47,0.00054794,120]
[354382170,1740468681209,-249.11224497,0.00054794,120]
[354382171,1740468681219,-500.0,0.00054794,120]
[354382172,1740468681228,-552.97,0.00054794,120]
[354382173,1740468681237,-599.78,0.00054794,120]
[354382174,1740468681247,-500.0,0.00054794,120]
[354382175,1740468681256,-599.78,0.00054794,120]
[354382176,1740468681266,-599.78,0.00054794,120]
[354382177,1740468681278,-1349.4,0.00054794,120]
[354382178,1740468681287,-500.0,0.00054794,120]
[354382179,1740468681297,-500.0,0.00054794,120]
[354382180,1740468681307,-599.78,0.00054794,120]
[354382181,1740468681316,-599.78,0.00054794,120]
[354382182,1740468681326,-599.78,0.00054794,120]
[354382183,1740468681335,-599.78,0.00054794,120]
[354382184,1740468681344,-500.0,0.00054794,120]
[354382185,1740468681353,-599.78,0.00054794,120]
[354382186,1740468681362,-599.78,0.00054794,120]
[354382187,1740468681371,-599.78,0.00054794,120]
[354382188,1740468681380,-500.0,0.00054794,120]
[354382189,1740468681389,-599.78,0.00054794,120]
[354382190,1740468681399,-599.78,0.00054794,120]
[354382191,1740468681408,-500.0,0.00054794,120]
[354382192,1740468681418,-599.78,0.00054794,120]
[354382193,1740468681428,-599.78,0.00054794,120]
[354382194,1740468681438,-599.78,0.00054794,120]
[354382195,1740468681447,-599.78,0.00054794,120]
[354382196,1740468681457,-599.78,0.00054794,120]
[354382197,1740468681466,-599.78,0.00054794,120]
[354382198,1740468681477,-599.78,0.00054794,120]
[354382199,1740468681487,-599.78,0.00054794,120]
[354382200,1740468681496,-741.84,0.00054794,120]
[354382201,1740468681506,-500.0,0.00054794,120]
[354382202,1740468681516,-599.78,0.00054794,120]
[354382203,1740468681527,-500.0,0.00054794,120]
[354382204,1740468681537,-599.78,0.00054794,120]
[354382205,1740468681546,-599.78,0.00054794,120]
[354382206,1740468681555,-500.0,0.00054794,120]
[354382207,1740468681565,-599.96731198,0.00054794,120]
[354382208,1740468681576,-500.0,0.00054794,120]
[354382209,1740468681585,-500.0,0.00054794,120]
[354382210,1740468681594,-500.0,0.00054794,120]
[354382211,1740468681603,-700.58,0.00054794,2]
[354382212,1740468681612,-2351.09,0.00054794,2]
[354382213,1740468681622,-503.53919867,0.00054794,120]
[354382214,1740468681631,-500.0,0.00054794,120]
[354382215,1740468681640,-500.0,0.00054794,120]
[354382216,1740468681650,-280.92563119,0.00054794,120]
[354382217,1740468681659,-500.0,0.00054794,120]
[354382218,1740468681668,-500.0,0.00054794,120]
[354382219,1740468681677,-500.0,0.00054794,120]
[354382220,1740468681687,-500.0,0.00054794,120]
[354382221,1740468681696,-994.98,0.00054794,30]
[354382222,1740468681706,-500.0,0.00054794,120]
[354382223,1740468681715,-500.0,0.00054794,120]
[354382224,1740468681724,-500.0,0.00054794,120]
[354382225,1740468681734,-500.0,0.00054794,120]
[354382226,1740468681744,-500.0,0.00054794,120]
[354382227,1740468681753,-500.0,0.00054794,120]
[354382228,1740468681763,-500.0,0.00054794,120]
[354382229,1740468681773,-500.0,0.00054794,120]
[354382230,1740468681786,-488.79690983,0.00054794,120]
[354382231,1740468681796,-500.0,0.00054794,120]
[354382232,1740468681805,-500.0,0.00054794,120]
[354382233,1740468681815,-500.0,0.00054794,120]
[354382234,1740468681824,-500.0,0.00054794,120]
[354382235,1740468681834,-715.33,0.00054794,120]
[354382236,1740468681843,-500.0,0.00054794,120]
[354382237,1740468681853,-504.93197789,0.00054794,120]
[354382238,1740468681862,-500.0,0.00054794,120]
[354382239,1740468681871,-500.0,0.00054794,120]
[354382240,1740468681881,-501.62813783,0.00054794,120]
[354382241,1740468681890,-520.41593733,0.00054794,120]
[354382242,1740468681899,-1439.89,0.00054794,120]
[354382243,1740468681908,-500.0,0.00054794,120]
[354382244,1740468681917,-943.25,0.00054794,120]
[354382245,1740468681927,-500.0,0.00054794,120]
[354382246,1740468681936,-500.0,0.00054794,120]
[354382247,1740468681945,-500.0,0.00054794,120]
[354382248,1740468681954,-657.52,0.00054794,120]
[354382249,1740468681964,-500.0,0.00054794,120]
[354382250,1740468681973,-500.0,0.00054794,120]
[354382251,1740468681982,-523.79,0.00054794,120]
[354382252,1740468681991,-500.58059465,0.00054794,120]
[354382253,1740468682000,-500.0,0.00054794,120]
[354382254,1740468682009,-500.0,0.00054794,120]
[354382255,1740468682018,-500.0,0.00054794,120]
[354382256,1740468682028,-1664.27,0.00054794,120]
[354382257,1740468682037,-500.0,0.00054794,120]
[354382258,1740468682046,-943.64,0.00054794,120]
[354382259,1740468682055,-500.0,0.00054794,120]
[354382260,1740468682065,-502.0809137,0.00054794,120]
[354382261,1740468682079,-500.0,0.00054794,120]
[354382262,1740468682091,-502.11574759,0.00054794,120]
[354382263,1740468682100,-501.24023943,0.00054794,120]
[354382264,1740468682109,-516.4,0.00054794,120]
[354382265,1740468682120,-500.0,0.00054794,120]
[354382266,1740468682130,-537.26572012,0.00054794,120]
[354382267,1740468682139,-500.0,0.00054794,120]
[354382268,1740468682152,-712.11,0.00054794,120]
[354382269,1740468682161,-500.0,0.00054794,120]
[354382270,1740468682171,-500.0,0.00054794,120]
[354382271,1740468682180,-502.2509703,0.00054794,120]
[354382272,1740468682190,-500.0,0.00054794,120]
[354382273,1740468682199,-500.0,0.00054794,120]
[354382274,1740468682209,-500.0,0.00054794,120]
[354382275,1740468682218,-503.26295915,0.00054794,120]
[354382276,1740468682227,-496.79470383,0.00054794,120]
[354382277,1740468682237,-500.0,0.00054794,120]
[354382278,1740468682246,-888.35,0.00054794,120]
[354382279,1740468682255,-502.15039237,0.00054794,120]
[354382280,1740468682264,-500.0,0.00054794,120]
[354382281,1740468682274,-500.0,0.00054794,120]
[354382282,1740468682284,-500.0,0.00054794,120]
[354382283,1740468682293,-500.0,0.00054794,120]
[354382284,1740468682303,-502.60672186,0.00054794,120]
[354382285,1740468682312,-522.22,0.00054794,120]
[354382286,1740468682321,-500.0,0.00054794,120]
[354382287,1740468682330,-500.0,0.00054794,120]
[354382288,1740468682339,-1032.87,0.00054794,120]
[354382289,1740468682349,-500.0,0.00054794,120]
[354382290,1740468682359,-500.0,0.00054794,120]
[354382291,1740468682369,-500.0,0.00054794,120]
[354382292,1740468682378,-500.0,0.00054794,120]
[354382293,1740468682388,-500.0,0.00054794,120]
[354382294,1740468682397,-1438.9,0.00054794,120]
[354382295,1740468682406,-500.0,0.00054794,120]
[354382296,1740468682416,-815.66,0.00054794,120]
[354382297,1740468682425,-570.8,0.00054794,120]
[354382298,1740468682434,-500.0,0.00054794,120]
[354382299,1740468682443,-500.0,0.00054794,120]
[354382300,1740468682452,-500.0,0.00054794,120]
[354382301,1740468682462,-501.70773787,0.00054794,120]
[354382302,1740468682471,-503.78798769,0.00054794,120]
[354382303,1740468682480,-504.05653333,0.00054794,30]
[354382304,1740468682489,-500.65010102,0.00054794,120]
[354382305,1740468682499,-500.0,0.00054794,120]
[354382306,1740468682508,-500.0,0.00054794,120]
[354382307,1740468682518,-500.0,0.00054794,120]
[354382308,1740468682530,-590.45695222,0.00054794,120]
[354382309,1740468682540,-500.0,0.00054794,120]
[354382310,1740468682550,-500.0,0.00054794,120]
[354382311,1740468682559,-500.0,0.00054794,120]
[354382312,1740468682569,-1275.45,0.00054794,120]
[354382313,1740468682578,-500.0,0.00054794,120]
[354382314,1740468682587,-500.0,0.00054794,120]
[354382315,1740468682597,-501.06813408,0.00054794,120]
[354382316,1740468682606,-3980.64,0.00054794,120]
[354382317,1740468682616,-296.89641747,0.00054794,120]
[354382318,1740468682625,-500.0,0.00054794,120]
[354382319,1740468682634,-500.0,0.00054794,120]
[354382320,1740468682644,-500.0,0.00054794,120]
[354382321,1740468682653,-500.0,0.00054794,120]
[354382322,1740468682663,-500.0,0.00054794,120]
[354382323,1740468682672,-1130.49,0.00054794,120]
[354382324,1740468682682,-508.96759435,0.00054794,120]
[354382325,1740468682691,-500.0,0.00054794,120]
[354382326,1740468682700,-1206.75,0.00054794,120]
[354382327,1740468682710,-500.0,0.00054794,120]
[354382328,1740468682720,-500.0,0.00054794,120]
[354382329,1740468682729,-1535.83,0.00054794,120]
[354382330,1740468682739,-1768.01,0.00054794,120]
[354382331,1740468682748,-500.0,0.00054794,120]
[354382332,1740468682758,-1200.87,0.00054794,120]
[354382333,1740468682767,-500.0,0.00054794,120]
[354382334,1740468682778,-500.0,0.00054794,120]
[354382335,1740468682788,-500.0,0.00054794,120]
[354382336,1740468682797,-502.55188312,0.00054794,120]
[354382337,1740468682807,-500.0,0.00054794,120]
[354382338,1740468682816,-664.86,0.00054794,120]
[354382339,1740468682825,-696.61,0.00054794,120]
[354382340,1740468682834,-1522.97,0.00054794,120]
[354382341,1740468682843,-500.0,0.00054794,120]
[354382342,1740468682853,-500.0,0.00054794,120]
[354382343,1740468682862,-151.85638156,0.00054794,120]
[354382344,1740468682871,-508.08184141,0.00054794,120]
[354382345,1740468682880,-500.0,0.00054794,120]
[354382346,1740468682890,-500.0,0.00054794,120]
[354382347,1740468682899,-500.0,0.00054794,120]
[354382348,1740468682908,-500.0,0.00054794,120]
[354382349,1740468682918,-500.0,0.00054794,120]
[354382350,1740468682927,-500.0,0.00054794,120]
[354382351,1740468682937,-501.91291656,0.00054794,120]
[354382352,1740468682947,-500.0,0.00054794,120]
[354382353,1740468682956,-1319.72,0.00054794,120]
[354382354,1740468682966,-1393.05,0.00054794,120]
[354382355,1740468682975,-894.01,0.00054794,120]
[354382356,1740468682985,-986.38,0.00054794,120]
[354382357,1740468682994,-1886.6,0.00054794,120]
[354382358,1740468683003,-502.42354961,0.00054794,120]
[354382359,1740468683012,-1184.76,0.00054794,120]
[354382360,1740468683021,-500.0,0.00054794,120]
[354382361,1740468683036,-500.0,0.00054794,120]
[354382362,1740468683046,-500.0,0.00054794,120]
[354382363,1740468683055,-500.0,0.00054794,120]
[354382364,1740468683065,-500.0,0.00054794,120]
[354382365,1740468683077,-2022.2,0.00054794,120]
[354382366,1740468683086,-504.21255465,0.00054794,120]
[354382367,1740468683096,-1099.29,0.00054794,120]
[354382368,1740468683106,-500.0,0.00054794,120]
[354382369,1740468683115,-503.32599339,0.00054794,120]
[354382370,1740468683125,-500.0,0.00054794,120]
[354382371,1740468683135,-500.0,0.00054794,120]
[354382372,1740468683145,-500.0,0.00054794,120]
[354382373,1740468683155,-1444.43,0.00054794,120]
[354382374,1740468683165,-500.0,0.00054794,120]
[354382375,1740468683174,-500.0,0.00054794,120]
[354382376,1740468683183,-500.0,0.00054794,120]
[354382377,1740468683192,-500.0,0.00054794,120]
[354382378,1740468683201,-512.51,0.00054794,120]
[354382379,1740468683211,-517.98,0.00054794,120]
[354382380,1740468683221,-277.64017848,0.00054794,120]
[354382381,1740468683231,-1030.18,0.00054794,120]
[354382382,1740468683241,-500.0,0.00054794,120]
[354382383,1740468683250,-971.18,0.00054794,120]
[354382384,1740468683260,-500.0,0.00054794,120]
[354382385,1740468683269,-504.09655146,0.00054794,120]
[354382386,1740468683282,-500.0,0.00054794,120]
[354382387,1740468683292,-500.0,0.00054794,120]
[354382388,1740468683302,-501.69244507,0.00054794,120]
[354382389,1740468683311,-508.04042378,0.00054794,120]
[354382390,1740468683321,-500.0,0.00054794,120]
[354382391,1740468683331,-500.0,0.00054794,120]
[354382392,1740468683340,-1142.3,0.00054794,120]
[354382393,1740468683349,-1194.04,0.00054794,120]
[354382394,1740468683359,-500.0,0.00054794,120]
[354382395,1740468683368,-500.0,0.00054794,120]
[354382396,1740468683377,-500.0,0.00054794,120]
[354382397,1740468683387,-628.51062644,0.00054794,120]
[354382398,1740468683397,-158.143147,0.00054794,120]
[354382399,1740468683406,-1000.0,0.00054794,2]
[354382400,1740468683417,-1000.0,0.00054794,2]
[354382401,1740468683427,-1000.0,0.00054794,2]
[354382402,1740468683437,-1000.0,0.00054794,2]
[354382403,1740468683447,-1748.82,0.00054794,120]
[354382404,1740468683456,-1000.0,0.00054794,2]
[354382405,1740468683466,-503.8279407,0.00054794,120]
[354382406,1740468683475,-1000.0,0.00054794,2]
[354382407,1740468683484,-500.0,0.00054794,120]
[354382408,1740468683494,-679.54,0.00054794,120]
[354382409,1740468683503,-1309.17,0.00054794,120]
[354382410,1740468683513,-500.0,0.00054794,120]
[354382411,1740468683522,-587.74,0.00054794,120]
[354382412,1740468683534,-500.0,0.00054794,120]
[354382413,1740468683543,-1000.0,0.00054794,2]
[354382414,1740468683553,-1000.0,0.00054794,2]
[354382415,1740468683562,-1062.35808856,0.00054794,2]
[354382416,1740468683571,-504.34168774,0.00054794,120]
[354382417,1740468683581,-500.0,0.00054794,120]
[354382418,1740468683590,-500.0,0.00054794,120]
[354382419,1740468683600,-778.7,0.00054794,120]
[354382420,1740468683609,-733.26,0.00054794,120]
[354382421,1740468683619,-730.67,0.00054794,120]
[354382422,1740468683628,-500.0,0.00054794,120]
[354382423,1740468683637,-500.0,0.00054794,120]
[354382424,1740468683647,-500.0,0.00054794,120]
[354382425,1740468683657,-500.0,0.00054794,120]
[354382426,1740468683667,-598.78,0.00054794,120]
[354382427,1740468683677,-343.780273,0.00054794,120]
[354382428,1740468683687,-1016.76,0.00054794,120]
[354382429,1740468683696,-789.0,0.00054794,120]
[354382430,1740468683706,-500.0,0.00054794,120]
[354382431,1740468683715,-500.0,0.00054794,120]
[354382432,1740468683724,-500.0,0.00054794,120]
[354382433,1740468683733,-501.3676127,0.00054794,120]
[354382434,1740468683742,-500.0,0.00054794,120]
[354382435,1740468683752,-507.81684258,0.00054794,120]
[354382436,1740468683761,-500.0,0.00054794,120]
[354382437,1740468683771,-1145.46,0.00054794,120]
[354382438,1740468683784,-501.24136088,0.00054794,120]
[354382439,1740468683794,-500.0,0.00054794,120]
[354382440,1740468683804,-4362.55,0.00054794,120]
[354382441,1740468683814,-500.0,0.00054794,120]
[354382442,1740468683824,-500.0,0.00054794,120]
[354382443,1740468683835,-500.0,0.00054794,120]
[354382444,1740468683844,-631.53,0.00054794,120]
[354382445,1740468683854,-500.0,0.00054794,120]
[354382446,1740468683863,-3017.39,0.00054794,120]
[354382447,1740468683873,-500.0,0.00054794,120]
[354382448,1740468683883,-969.91,0.00054794,120]
[354382449,1740468683892,-500.0,0.00054794,120]
[354382450,1740468683902,-759.14,0.00054794,120]
[354382451,1740468683912,-500.0,0.00054794,120]
[354382452,1740468683922,-505.74050923,0.00054794,120]
[354382453,1740468683932,-500.0,0.00054794,120]
[354382454,1740468683942,-500.0,0.00054794,120]
[354382455,1740468683952,-500.0,0.00054794,120]
[354382456,1740468683963,-2220.86,0.00054794,120]
[354382457,1740468683973,-150.0,0.00054794,120]
[354382458,1740468683983,-318.751745,0.00054794,120]
[354382459,1740468683992,-502.05555264,0.00054794,120]
[354382460,1740468684002,-1553.03,0.00054794,120]
[354382461,1740468684012,-500.0,0.00054794,120]
[354382462,1740468684022,-500.0,0.00054794,120]
[354382463,1740468684036,-500.0,0.00054794,120]
[354382464,1740468684046,-722.9,0.00054794,120]
[354382465,1740468684056,-500.0,0.00054794,120]
[354382466,1740468684067,-3952.9104907,0.00054794,120]
[354382467,1740468684077,-856.37,0.00054794,120]
[354382468,1740468684273,-910.26,0.00054794,120]
[354382469,1740468684286,-500.0,0.00054794,120]
[354382470,1740468684296,-500.0,0.00054794,120]
[354382471,1740468684306,-501.36033659,0.00054794,120]
[354382472,1740468684316,-887.73,0.00054794,120]
[354382473,1740468684325,-1830.19,0.00054794,120]
[354382474,1740468684335,-1715.31,0.00054794,120]
[354382475,1740468684344,-500.0,0.00054794,120]
[354382476,1740468684354,-500.0,0.00054794,120]
[354382477,1740468684364,-501.56570212,0.00054794,120]
[354382478,1740468684374,-500.0,0.00054794,120]
[354382479,1740468684384,-500.0,0.00054794,120]
[354382480,1740468684394,-500.0,0.00054794,120]
[354382481,1740468684403,-509.18955772,0.00054794,120]
[354382482,1740468684412,-448.9562741,0.00054794,120]
[354382483,1740468684422,-500.0,0.00054794,120]
[354382484,1740468684432,-686.54,0.00054794,120]
[354382485,1740468684442,-502.4892489,0.00054794,120]
[354382486,1740468684452,-500.0,0.00054794,120]
[354382487,1740468684462,-500.0,0.00054794,120]
[354382488,1740468684471,-2424.1,0.00054794,120]
[354382489,1740468684481,-500.0,0.00054794,120]
[354382490,1740468684491,-500.0,0.00054794,120]
[354382491,1740468684499,-501.21501533,0.00054794,120]
[354382492,1740468684509,-500.0,0.00054794,120]
[354382493,1740468684519,-253.82456505,0.00054794,120]
[354382494,1740468684529,-1521.55,0.00054794,120]
[354382495,1740468684538,-823.47,0.00054794,120]
[354382496,1740468684548,-2919.48,0.00054794,120]
[354382497,1740468684558,-500.0,0.00054794,120]
[354382498,1740468684567,-1738.48,0.00054794,120]
[354382499,1740468684577,-915.34,0.00054794,120]
[354382500,1740468684587,-642.26334444,0.00054794,120]
[354382501,1740468684596,-2711.99,0.00054794,120]
[354382502,1740468684606,-500.0,0.00054794,2]
[354382503,1740468684615,-500.0,0.00054794,120]
[354382504,1740468684623,-500.0,0.00054794,120]
[354382505,1740468684633,-576.99,0.00054794,120]
[354382506,1740468684642,-500.0,0.00054794,120]
[354382507,1740468684651,-524.73458507,0.00054794,120]
[354382508,1740468684660,-500.0,0.00054794,120]
[354382509,1740468684670,-500.0,0.00054794,60]
[354382510,1740468684679,-500.0,0.00054794,120]
[354382511,1740468684688,-500.0,0.00054794,120]
[354382512,1740468684698,-3002.9,0.00054794,120]
[354382513,1740468684707,-3002.9,0.00054794,120]
[354382514,1740468684717,-3002.9,0.00054794,120]
[354382515,1740468684727,-3002.9,0.00054794,120]
[354382516,1740468684737,-500.0,0.00054794,120]
[354382517,1740468684746,-3002.9,0.00054794,120]
[354382518,1740468684756,-3002.9,0.00054794,120]
[354382519,1740468684765,-2110.84,0.00054794,120]
[354382520,1740468684775,-3002.9,0.00054794,120]
[354382521,1740468684788,-3002.9,0.00054794,120]
[354382522,1740468684798,-3002.9,0.00054794,120]
[354382523,1740468684808,-637.74,0.00054794,120]
[354382524,1740468684818,-519.00335042,0.00054794,120]
[354382525,1740468684829,-3002.9,0.00054794,120]
[354382526,1740468684840,-3002.9,0.00054794,120]
[354382527,1740468684852,-2315.41,0.00054794,120]
[354382528,1740468684863,-3002.9,0.00054794,120]
[354382529,1740468684873,-3002.9,0.00054794,120]
[354382530,1740468684883,-3875.43,0.00054794,7]
[354382531,1740468684894,-297.27523765,0.00054794,120]
[354382532,1740468684904,-3002.9,0.00054794,120]
[354382533,1740468684914,-500.0,0.00054794,120]
[354382534,1740468684925,-3002.9,0.00054794,120]
[354382535,1740468684935,-3002.9,0.00054794,120]
[354382536,1740468684944,-500.0,0.00054794,120]
[354382537,1740468684954,-1035.71,0.00054794,120]
[354382538,1740468684964,-3002.9,0.00054794,120]
[354382539,1740468684973,-3002.9,0.00054794,120]
[354382540,1740468684983,-500.0,0.00054794,60]
[354382541,1740468684993,-3002.9,0.00054794,120]
[354382542,1740468685003,-3002.9,0.00054794,120]
[354382543,1740468685012,-3002.9,0.00054794,120]
[354382544,1740468685022,-3002.9,0.00054794,120]
[354382545,1740468685036,-3002.9,0.00054794,120]
[354382546,1740468685046,-3003.07788652,0.00054794,120]
[354382547,1740468685056,-750.25,0.00054794,120]
[354382548,1740468685067,-500.0,0.00054794,120]
[354382549,1740468685077,-500.0,0.00054794,120]
[354382550,1740468685087,-3264.88,0.00054794,120]
[354382551,1740468685098,-500.0,0.00054794,120]
[354382552,1740468685109,-2938.93,0.00054794,120]
[354382553,1740468685119,-500.0,0.00054794,120]
[354382554,1740468685128,-500.0,0.00054794,120]
[354382555,1740468685138,-500.59846883,0.00054794,120]
[354382556,1740468685147,-500.0,0.00054794,120]
[354382557,1740468685157,-502.70348201,0.00054794,120]
[354382558,1740468685168,-1210.86,0.00054794,120]
[354382559,1740468685178,-500.0,0.00054794,120]
[354382560,1740468685188,-534.95,0.00054794,120]
[354382561,1740468685198,-703.65,0.00054794,120]
[354382562,1740468685208,-2458.44,0.00054794,120]
[354382563,1740468685218,-500.0,0.00054794,120]
[354382564,1740468685228,-500.0,0.00054794,120]
[354382565,1740468685238,-1393.41,0.00054794,120]
[354382566,1740468685248,-513.29300031,0.00054794,120]
[354382567,1740468685259,-1393.41,0.00054794,120]
[354382568,1740468685269,-1393.41,0.00054794,120]
[354382569,1740468685282,-1393.41,0.00054794,120]
[354382570,1740468685291,-1393.41,0.00054794,120]
[354382571,1740468685301,-1393.41,0.00054794,120]
[354382572,1740468685311,-1556.62,0.00054794,120]
[354382573,1740468685321,-1393.41,0.00054794,120]
[354382574,1740468685331,-1393.41,0.00054794,120]
[354382575,1740468685340,-1393.41,0.00054794,120]
[354382576,1740468685350,-502.00802229,0.00054794,120]
[354382577,1740468685371,-1393.41,0.00054794,120]
[354382578,1740468685382,-1393.41,0.00054794,120]
[354382579,1740468685392,-1393.41,0.00054794,120]
[354382580,1740468685402,-1393.41,0.00054794,120]
[354382581,1740468685412,-500.0,0.00054794,120]
[354382582,1740468685423,-1393.41,0.00054794,120]
[354382583,1740468685434,-1393.41,0.00054794,120]
[354382584,1740468685444,-1393.41,0.00054794,120]
[354382585,1740468685455,-500.0,0.00054794,120]
[354382586,1740468685466,-1393.41,0.00054794,120]
[354382587,1740468685477,-1393.41,0.00054794,120]
[354382588,1740468685487,-2761.69,0.00054794,120]
[354382589,1740468685498,-1393.41,0.00054794,120]
[354382590,1740468685508,-1393.41,0.00054794,120]
[354382591,1740468685519,-1393.41,0.00054794,120]
[354382592,1740468685531,-1393.41,0.00054794,120]
[354382593,1740468685541,-1393.41,0.00054794,120]
[354382594,1740468685552,-1393.55873638,0.00054794,120]
[354382595,1740468685563,-500.0,0.00054794,120]
[354382596,1740468685574,-689.83,0.00054794,120]
[354382597,1740468685584,-1493.71,0.00054794,120]
[354382598,1740468685595,-585.51,0.00054794,120]
[354382599,1740468685605,-2649.21,0.00054794,120]
[354382600,1740468685616,-1981.89,0.00054794,120]
[354382601,1740468685626,-500.0,0.00054794,120]
[354382602,1740468685637,-500.0,0.00054794,120]
[354382603,1740468685649,-2553.02,0.00054794,120]
[354382604,1740468685659,-3211.4,0.00054794,120]
[354382605,1740468685670,-500.0,0.00054794,120]
[354382606,1740468685681,-500.0,0.00054794,120]